fUST/lending_fUST_20250305
["ID","MTS","AMOUNT","RATE_DAILY","PERIOD"]
[355424731,1741133436199,-356.0733927,0.00042372,30]
[355424732,1741133436209,-356.0733927,0.00042372,30]
[355424733,1741133436218,-356.0733927,0.00042372,30]
[355424734,1741133436227,-471.86464303,0.00042444,120]
[355424735,1741133436237,-1000.0,0.000425,30]
[355424736,1741133436246,-1000.0,0.000425,120]
[355424737,1741133436256,-625.33,0.000427,30]
[355424738,1741133436267,-960.18,0.000427,30]
[355424739,1741133436278,-1000.0,0.0004275,30]
[355424740,1741133436287,-1199.61510943,0.00042771,7]
[355424741,1741133436296,-1500.0,0.00042771,10]
[355424742,1741133436306,-1500.0,0.00042771,10]
[355424743,1741133436316,-1500.0,0.00042771,10]
[355424744,1741133436325,-12111.12,0.00043,30]
[355424745,1741133436335,-1000.0,0.00043,30]
[355424746,1741133436345,-1000.0,0.00043,120]
[355424747,1741133436355,-182.0,0.00043,90]
[355424748,1741133436364,-705.589308,0.00043,120]
[355424749,1741133436376,-705.589308,0.00043,120]
[355424750,1741133436386,-500.0,0.00043012,120]
[355424751,1741133436395,-1441.24872005,0.00043082,28]
[355424752,1741133436404,-459.14,0.000431,30]
[355424753,1741133436414,-1000.0,0.000431,30]
[355424754,1741133436423,-154.44,0.000433,33]
[355424755,1741133436434,-154.44,0.000433,33]
[355424756,1741133436444,-10000.0,0.00043545,4]
[355424757,1741133436455,-1000.0,0.000436,120]
[355424758,1741133436465,-10000.0,0.00043605,4]
[355424759,1741133436474,-10000.0,0.00043635,4]
[355424760,1741133436484,-10000.0,0.00043726,4]
[355424761,1741133436494,-10000.0,0.00043726,4]
[355424762,1741133436504,-655.86418647,0.00043735,2]
[355424763,1741133436514,-11032.62301753,0.00043735,2]
[355424764,1741133436523,-3000.0,0.00043735,2]
[355424765,1741133436533,-500.0,0.00043773,10]
[355424766,1741133436542,-500.0,0.00043773,10]
[355424767,1741133436552,-10000.0,0.00043791,4]
[355424768,1741133436562,-150.0,0.000438,120]
[355424769,1741133436571,-1000.0,0.000438,120]
[355424770,1741133436581,-2285.88,0.000438,30]
[355424771,1741133436592,-1266.79681301,0.00043822,2]
[355424772,1741133436601,-73612.14745646,0.0004383,22]
[355424773,1741133436612,-151.0,0.0004383,120]
[355424774,1741133436623,-690.979086,0.0004383,120]
[355424775,1741133436633,-690.979086,0.0004383,120]
[355424776,1741133436643,-705.589308,0.0004383,120]
[355424777,1741133436654,-705.589308,0.0004383,120]
[355424778,1741133436665,-1000.0,0.00043834,120]
[355424779,1741133436674,-500.0,0.00043835,120]
[355424780,1741133436685,-500.0,0.00043835,120]
[355424781,1741133436696,-500.0,0.00043835,120]
[355424782,1741133436706,-500.0,0.00043835,120]
[355424783,1741133436716,-472.7279095,0.00043835,120]
[355424784,1741133436726,-500.0,0.00043835,120]
[355424785,1741133436737,-500.0,0.00043835,120]
[355424786,1741133436747,-501.49252279,0.00043835,120]
[355424787,1741133436757,-500.0,0.00043835,120]
[355424788,1741133436766,-500.0,0.00043835,120]
[355424789,1741133436776,-500.0,0.00043835,120]
[355424790,1741133436785,-500.0,0.00043835,120]
[355424791,1741133436795,-500.0,0.00043835,120]
[355424792,1741133436804,-502.56956194,0.00043835,120]
[355424793,1741133436814,-500.0,0.00043835,5]
[355424794,1741133436823,-500.0,0.00043835,120]
[355424795,1741133436833,-642.72,0.00043835,120]
[355424796,1741133436843,-502.45412418,0.00043835,120]
[355424797,1741133436853,-531.95,0.00043835,120]
[355424798,1741133436863,-500.0,0.00043835,120]
[355424799,1741133436873,-500.0,0.00043835,120]
[355424800,1741133436882,-500.0,0.00043835,120]
[355424801,1741133436892,-500.0,0.00043835,120]
[355424802,1741133436902,-500.0,0.00043835,120]
[355424803,1741133436912,-500.0,0.00043835,120]
[355424804,1741133436922,-506.44111019,0.00043835,120]
[355424805,1741133436931,-502.84914932,0.00043835,120]
[355424806,1741133436941,-500.0,0.00043835,120]
[355424807,1741133436951,-500.0,0.00043835,120]
[355424808,1741133436961,-500.0,0.00043835,120]
[355424809,1741133436971,-500.0,0.00043835,120]
[355424810,1741133436980,-500.0,0.00043835,120]
[355424811,1741133436989,-500.0,0.00043835,120]
[355424812,1741133436998,-500.0,0.00043835,120]
[355424813,1741133437007,-500.0,0.00043835,120]
[355424814,1741133437017,-500.0,0.00043835,120]
[355424815,1741133437027,-500.0,0.00043835,120]
[355424816,1741133437037,-505.59154182,0.00043835,120]
[355424817,1741133437046,-500.0,0.00043835,120]
[355424818,1741133437056,-500.0,0.00043835,120]
[355424819,1741133437065,-500.0,0.00043835,120]
[355424820,1741133437074,-500.0,0.00043835,120]
[355424821,1741133437084,-500.0,0.00043835,120]
[355424822,1741133437094,-500.0,0.00043835,120]
[355424823,1741133437103,-500.0,0.00043835,120]
[355424824,1741133437113,-500.0,0.00043835,120]
[355424825,1741133437124,-500.0,0.00043835,120]
[355424826,1741133437133,-500.0,0.00043835,120]
[355424827,1741133437142,-500.0,0.00043835,120]
[355424828,1741133437152,-500.0,0.00043835,120]
[355424829,1741133437161,-500.0,0.00043835,120]
[355424830,1741133437170,-500.0,0.00043835,120]
[355424831,1741133437180,-500.0,0.00043835,120]
[355424832,1741133437190,-500.0,0.00043835,120]
[355424833,1741133437199,-500.0,0.00043835,120]
[355424834,1741133437208,-500.0,0.00043835,120]
[355424835,1741133437218,-500.0,0.00043835,120]
[355424836,1741133437228,-615.95050168,0.00043835,120]
[355424837,1741133437237,-500.0,0.00043835,120]
[355424838,1741133437247,-500.0,0.00043835,30]
[355424839,1741133437258,-500.0,0.00043835,120]
[355424840,1741133437267,-500.0,0.00043835,120]
[355424841,1741133437278,-501.47775902,0.00043835,120]
[355424842,1741133437287,-500.0,0.00043835,120]
[355424843,1741133437297,-500.0,0.00043835,120]
[355424844,1741133437309,-500.0,0.00043835,120]
[355424845,1741133437319,-500.0,0.00043835,120]
[355424846,1741133437328,-500.0,0.00043835,120]
[355424847,1741133437338,-500.0,0.00043835,120]
[355424848,1741133437348,-500.0,0.00043835,120]
[355424849,1741133437358,-893.83,0.00043835,120]
[355424850,1741133437368,-500.0,0.00043835,120]
[355424851,1741133437379,-500.0,0.00043835,120]
[355424852,1741133437388,-521.43,0.00043835,120]
[355424853,1741133437398,-500.0,0.00043835,120]
[355424854,1741133437407,-500.0,0.00043835,120]
[355424855,1741133437418,-505.99938942,0.00043835,120]
[355424856,1741133437427,-500.0,0.00043835,120]
[355424857,1741133437436,-500.0,0.00043835,120]
[355424858,1741133437455,-500.0,0.00043835,120]
[355424859,1741133437465,-500.0,0.00043835,120]
[355424860,1741133437477,-500.0,0.00043835,120]
[355424861,1741133437487,-611.26,0.00043835,120]
[355424862,1741133437497,-500.0,0.00043835,120]
[355424863,1741133437509,-504.67246536,0.00043835,120]
[355424864,1741133437521,-500.0,0.00043835,120]
[355424865,1741133437530,-500.0,0.00043835,120]
[355424866,1741133437540,-625.34,0.00043835,120]
[355424867,1741133437552,-500.0,0.00043835,120]
[355424868,1741133437562,-500.0,0.00043835,120]
[355424869,1741133437573,-500.0,0.00043835,120]
[355424870,1741133437582,-500.0,0.00043835,120]
[355424871,1741133437591,-500.0,0.00043835,120]
[355424872,1741133437601,-500.0,0.00043835,120]
[355424873,1741133437611,-500.0,0.00043835,120]
[355424874,1741133437620,-506.03161934,0.00043835,120]
[355424875,1741133437630,-500.0,0.00043835,120]
[355424876,1741133437640,-500.0,0.00043835,120]
[355424877,1741133437650,-500.0,0.00043835,120]
[355424878,1741133437660,-500.0,0.00043835,120]
[355424879,1741133437670,-500.0,0.00043835,120]
[355424880,1741133437679,-510.81,0.00043835,120]
[355424881,1741133437690,-518.174401,0.00043835,120]
[355424882,1741133437700,-500.0,0.00043835,120]
[355424883,1741133437711,-500.0,0.00043835,120]
[355424884,1741133437721,-503.98478958,0.00043835,120]
[355424885,1741133437731,-500.0,0.00043835,16]
[355424886,1741133437742,-500.0,0.00043835,120]
[355424887,1741133437754,-500.0,0.00043835,120]
[355424888,1741133437764,-578.83,0.00043835,120]
[355424889,1741133437773,-584.35,0.00043835,120]
[355424890,1741133437784,-500.0,0.00043835,120]
[355424891,1741133437794,-500.0,0.00043835,120]
[355424892,1741133437804,-500.0,0.00043835,120]
[355424893,1741133437814,-500.0,0.00043835,120]
[355424894,1741133437825,-553.69,0.00043835,120]
[355424895,1741133437835,-770.71,0.00043835,120]
[355424896,1741133437844,-500.0,0.00043835,120]
[355424897,1741133437854,-500.0,0.00043835,120]
[355424898,1741133437863,-500.0,0.00043835,120]
[355424900,1741133437876,-572.13,0.00043835,120]
[355424901,1741133437886,-500.0,0.00043835,120]
[355424902,1741133437897,-500.0,0.00043835,120]
[355424903,1741133437906,-500.0,0.00043835,120]
[355424905,1741133437916,-500.0,0.00043835,120]
[355424907,1741133438032,-761.67,0.00043835,120]
[355424908,1741133438042,-500.0,0.00043835,120]
[355424909,1741133438052,-500.0,0.00043835,120]
[355424910,1741133438062,-500.0,0.00043835,120]
[355424911,1741133438072,-548.22459844,0.00043835,120]
[355424912,1741133438081,-500.0,0.00043835,120]
[355424913,1741133438091,-500.0,0.00043835,120]
[355424914,1741133438102,-500.0,0.00043835,120]
[355424915,1741133438111,-500.0,0.00043835,120]
[355424916,1741133438121,-500.0,0.00043835,120]
[355424917,1741133438131,-500.0,0.00043835,120]
[355424918,1741133438142,-507.36093222,0.00043835,120]
[355424919,1741133438151,-500.0,0.00043835,120]
[355424920,1741133438161,-500.0,0.00043835,120]
[355424921,1741133438170,-500.0,0.00043835,120]
[355424922,1741133438180,-596.19,0.00043835,120]
[355424923,1741133438190,-500.0,0.00043835,120]
[355424924,1741133438200,-500.0,0.00043835,120]
[355424925,1741133438209,-588.58,0.00043835,120]
[355424926,1741133438218,-500.0,0.00043835,120]
[355424927,1741133438228,-500.0,0.00043835,120]
[355424928,1741133438238,-500.0,0.00043835,120]
[355424929,1741133438248,-1526.98,0.00043835,120]
[355424930,1741133438263,-500.0,0.00043835,120]
[355424931,1741133438272,-500.0,0.00043835,120]
[355424932,1741133438282,-500.0,0.00043835,120]
[355424933,1741133438293,-500.0,0.00043835,120]
[355424934,1741133438303,-500.0,0.00043835,120]
[355424935,1741133438313,-500.0,0.00043835,120]
[355424936,1741133438323,-500.0,0.00043835,120]
[355424937,1741133438333,-500.0,0.00043835,120]
[355424938,1741133438343,-500.0,0.00043835,120]
[355424939,1741133438353,-500.0,0.00043835,120]
[355424941,1741133438362,-500.0,0.00043835,120]
[355424943,1741133438371,-500.0,0.00043835,120]
[355424944,1741133438381,-500.0,0.00043835,120]
[355424945,1741133438391,-749.9,0.00043835,120]
[355424946,1741133438400,-721.77,0.00043835,120]
[355424947,1741133438410,-503.59832505,0.00043835,120]
[355424948,1741133438420,-500.0,0.00043835,120]
[355424949,1741133438429,-500.0,0.00043835,120]
[355424950,1741133438439,-500.0,0.00043835,120]
[355424951,1741133438448,-500.0,0.00043835,120]
[355424952,1741133438457,-500.0,0.00043835,120]
[355424953,1741133438469,-500.0,0.00043835,120]
[355424954,1741133438478,-500.0,0.00043835,120]
[355424955,1741133438487,-500.0,0.00043835,120]
[355424956,1741133438497,-500.0,0.00043835,120]
[355424957,1741133438506,-694.81,0.00043835,120]
[355424958,1741133438515,-590.42,0.00043835,120]
[355424959,1741133438524,-500.0,0.00043835,120]
[355424960,1741133438535,-500.0,0.00043835,120]
[355424961,1741133438545,-500.0,0.00043835,120]
[355424962,1741133438556,-500.0,0.00043835,120]
[355424963,1741133438566,-500.0,0.00043835,120]
[355424964,1741133438576,-500.0,0.00043835,120]
[355424965,1741133438586,-500.0,0.00043835,120]
[355424966,1741133438595,-500.0,0.00043835,120]
[355424967,1741133438605,-500.0,0.00043835,120]
[355424968,1741133438614,-347.41896602,0.00043835,120]
[355424969,1741133438623,-549.79066763,0.00043835,120]
[355424970,1741133438633,-500.0,0.00043835,120]
[355424971,1741133438645,-500.0,0.00043835,120]
[355424972,1741133438655,-522.25,0.00043835,120]
[355424973,1741133438665,-500.0,0.00043835,120]
[355424974,1741133438675,-500.0,0.00043835,120]
[355424975,1741133438684,-500.0,0.00043835,120]
[355424976,1741133438694,-500.0,0.00043835,120]
[355424977,1741133438703,-500.0,0.00043835,120]
[355424978,1741133438713,-500.0,0.00043835,120]
[355424979,1741133438722,-500.0,0.00043835,120]
[355424980,1741133438732,-500.0,0.00043835,120]
[355424981,1741133438742,-500.0,0.00043835,120]
[355424982,1741133438752,-500.0,0.00043835,120]
[355424983,1741133438762,-500.0,0.00043835,120]
[355424984,1741133438771,-330.6693392,0.00043835,120]
[355424985,1741133438781,-727.24,0.00043835,120]
[355424986,1741133438790,-500.0,0.00043835,120]
[355424987,1741133438799,-500.0,0.00043835,120]
[355424988,1741133438808,-500.0,0.00043835,120]
[355424989,1741133438818,-1271.12,0.00043835,120]
[355424990,1741133438827,-500.0,0.00043835,120]
[355424991,1741133438837,-500.0,0.00043835,120]
[355424992,1741133438847,-500.0,0.00043835,120]
[355424993,1741133438857,-500.0,0.00043835,120]
[355424994,1741133438866,-500.0,0.00043835,120]
[355424995,1741133438875,-502.06807346,0.00043835,120]
[355424996,1741133438885,-500.0,0.00043835,120]
[355424997,1741133438895,-500.0,0.00043835,120]
[355424998,1741133438904,-500.0,0.00043835,120]
[355424999,1741133438913,-500.0,0.00043835,120]
[355425000,1741133438923,-500.0,0.00043835,120]
[355425001,1741133438933,-500.0,0.00043835,120]
[355425002,1741133438943,-510.71014263,0.00043835,120]
[355425003,1741133438953,-500.0,0.00043835,120]
[355425004,1741133438963,-500.0,0.00043835,120]
[355425005,1741133438972,-500.0,0.00043835,120]
[355425006,1741133438982,-500.0,0.00043835,120]
[355425007,1741133438992,-500.0,0.00043835,120]
[355425008,1741133439001,-500.0,0.00043835,120]
[355425009,1741133439011,-500.0,0.00043835,120]
[355425010,1741133439020,-500.0,0.00043835,120]
[355425011,1741133439030,-500.0,0.00043835,120]
[355425012,1741133439041,-500.0,0.00043835,120]
[355425013,1741133439052,-511.95,0.00043835,120]
[355425014,1741133439062,-502.26718193,0.00043835,120]
[355425015,1741133439072,-500.0,0.00043835,120]
[355425016,1741133439083,-500.0,0.00043835,120]
[355425017,1741133439093,-500.0,0.00043835,120]
[355425018,1741133439103,-897.6,0.00043835,120]
[355425019,1741133439112,-740.77,0.00043835,120]
[355425020,1741133439122,-323.25131411,0.00043835,120]
[355425021,1741133439134,-656.86,0.00043835,120]
[355425022,1741133439144,-500.0,0.00043835,120]
[355425023,1741133439153,-818.65,0.00043835,120]
[355425024,1741133439163,-500.0,0.00043835,120]
[355425025,1741133439172,-500.0,0.00043835,120]
[355425026,1741133439182,-506.88275017,0.00043835,120]
[355425027,1741133439191,-500.0,0.00043835,120]
[355425028,1741133439200,-285.7007085,0.00043835,120]
[355425029,1741133439209,-500.0,0.00043835,120]
[355425030,1741133439218,-500.0,0.00043835,120]
[355425031,1741133439228,-502.33477752,0.00043835,120]
[355425032,1741133439238,-507.32092926,0.00043835,120]
[355425033,1741133439247,-500.0,0.00043835,16]
[355425034,1741133439257,-379.83603245,0.00043835,120]
[355425035,1741133439271,-500.0,0.00043835,120]
[355425036,1741133439280,-500.0,0.00043835,120]
[355425037,1741133439290,-500.0,0.00043835,120]
[355425038,1741133439301,-500.0,0.00043835,120]
[355425039,1741133439310,-509.82371999,0.00043835,120]
[355425040,1741133439320,-500.0,0.00043835,120]
[355425041,1741133439330,-500.0,0.00043835,120]
[355425042,1741133439340,-500.0,0.00043835,120]
[355425043,1741133439351,-500.0,0.00043835,120]
[355425044,1741133439361,-500.0,0.00043835,120]
[355425045,1741133439370,-578.89,0.00043835,120]
[355425046,1741133439381,-500.0,0.00043835,120]
[355425047,1741133439389,-500.0,0.00043835,120]
[355425048,1741133439399,-500.0,0.00043835,120]
[355425049,1741133439409,-500.0,0.00043835,120]
[355425050,1741133439419,-500.0,0.00043835,120]
[355425051,1741133439429,-500.0,0.00043835,120]
[355425052,1741133439440,-500.0,0.00043835,120]
[355425053,1741133439450,-500.0,0.00043835,120]
[355425054,1741133439459,-500.0,0.00043835,120]
[355425055,1741133439469,-500.0,0.00043835,120]
[355425056,1741133439479,-500.0,0.00043835,120]
[355425057,1741133439490,-500.0,0.00043835,120]
[355425058,1741133439499,-500.0,0.00043835,120]
[355425059,1741133439508,-500.0,0.00043835,120]
[355425060,1741133439518,-514.92472943,0.00043835,120]
[355425061,1741133439528,-1098.7,0.00043835,120]
[355425062,1741133439540,-297.56571544,0.00043835,120]
[355425063,1741133439549,-500.0,0.00043835,120]
[355425064,1741133439558,-500.0,0.00043835,120]
[355425065,1741133439568,-500.0,0.00043835,120]
[355425066,1741133439578,-500.0,0.00043835,120]
[355425067,1741133439588,-500.0,0.00043835,120]
[355425068,1741133439597,-776.18,0.00043835,120]
[355425069,1741133439607,-1326.98,0.00043835,120]
[355425070,1741133439616,-500.0,0.00043835,120]
[355425071,1741133439626,-500.0,0.00043835,120]
[355425072,1741133439635,-500.0,0.00043835,120]
[355425073,1741133439645,-500.0,0.00043835,120]
[355425074,1741133439655,-500.0,0.00043835,120]
[355425075,1741133439664,-500.0,0.00043835,120]
[355425076,1741133439674,-500.0,0.00043835,120]
[355425077,1741133439684,-500.0,0.00043835,120]
[355425078,1741133439693,-500.0,0.00043835,120]
[355425079,1741133439703,-500.0,0.00043835,120]
[355425080,1741133439713,-500.0,0.00043835,120]
[355425081,1741133439722,-500.0,0.00043835,120]
[355425082,1741133439733,-500.0,0.00043835,120]
[355425083,1741133439743,-500.0,0.00043835,120]
[355425084,1741133439852,-500.54280839,0.00043835,120]
[355425085,1741133439862,-500.0,0.00043835,120]
[355425086,1741133439871,-500.0,0.00043835,120]
[355425087,1741133439881,-500.70676364,0.00043835,120]
[355425088,1741133439891,-500.0,0.00043835,120]
[355425089,1741133439900,-500.0,0.00043835,120]
[355425090,1741133439909,-741.53,0.00043835,120]
[355425091,1741133439919,-500.0,0.00043835,120]
[355425092,1741133439928,-500.0,0.00043835,15]
[355425093,1741133439937,-500.0,0.00043835,120]
[355425094,1741133439947,-725.38,0.00043835,120]
[355425095,1741133439956,-530.65,0.00043835,120]
[355425096,1741133439967,-500.0,0.00043835,120]
[355425097,1741133439975,-540.75,0.00043835,120]
[355425098,1741133439984,-500.0,0.00043835,120]
[355425099,1741133439993,-500.0,0.00043835,120]
[355425100,1741133440002,-775.04,0.00043835,120]
[355425101,1741133440010,-500.0,0.00043835,120]
[355425102,1741133440019,-500.0,0.00043835,120]
[355425103,1741133440028,-500.0,0.00043835,120]
[355425104,1741133440037,-500.0,0.00043835,120]
[355425105,1741133440046,-1535.64,0.00043835,120]
[355425107,1741133440056,-500.0,0.00043835,120]
[355425108,1741133440065,-500.0,0.00043835,120]
[355425109,1741133440074,-500.0,0.00043835,120]
[355425110,1741133440083,-500.0,0.00043835,120]
[355425111,1741133440093,-500.0,0.00043835,120]
[355425112,1741133440102,-500.0,0.00043835,120]
[355425113,1741133440111,-500.0,0.00043835,120]
[355425114,1741133440121,-500.0,0.00043835,120]
[355425115,1741133440132,-664.73,0.00043835,120]
[355425116,1741133440141,-500.0,0.00043835,120]
[355425117,1741133440151,-1570.88,0.00043835,120]
[355425118,1741133440161,-500.0,0.00043835,120]
[355425119,1741133440171,-500.0,0.00043835,120]
[355425120,1741133440181,-500.0,0.00043835,120]
[355425121,1741133440190,-500.0,0.00043835,120]
[355425122,1741133440199,-1000.0,0.00043835,88]
[355425123,1741133440209,-629.70083026,0.00043835,120]
[355425124,1741133440218,-500.0,0.00043835,120]
[355425125,1741133440228,-2061.69,0.00043835,120]
[355425126,1741133440238,-500.0,0.00043835,120]
[355425127,1741133440247,-589.13,0.00043835,120]
[355425128,1741133440265,-525.17,0.00043835,120]
[355425129,1741133440275,-500.0,0.00043835,120]
[355425130,1741133440284,-500.0,0.00043835,120]
[355425131,1741133440293,-500.0,0.00043835,120]
[355425132,1741133440304,-500.0,0.00043835,120]
[355425133,1741133440315,-525.27,0.00043835,120]
[355425134,1741133440324,-500.0,0.00043835,120]
[355425135,1741133440334,-500.0,0.00043835,120]
[355425136,1741133440343,-500.0,0.00043835,120]
[355425137,1741133440352,-1148.19,0.00043835,120]
[355425138,1741133440363,-500.0,0.00043835,120]
[355425139,1741133440372,-500.0,0.00043835,120]
[355425140,1741133440383,-870.17,0.00043835,120]
[355425141,1741133440393,-500.0,0.00043835,120]
[355425142,1741133440403,-500.0,0.00043835,120]
[355425143,1741133440412,-500.0,0.00043835,120]
[355425144,1741133440422,-500.0,0.00043835,120]
[355425145,1741133440432,-542.77017666,0.00043835,120]
[355425146,1741133440441,-500.0,0.00043835,120]
[355425147,1741133440451,-500.0,0.00043835,120]
[355425148,1741133440461,-511.65,0.00043835,120]
[355425149,1741133440470,-500.0,0.00043835,120]
[355425150,1741133440479,-500.0,0.00043835,120]
[355425151,1741133440489,-500.0,0.00043835,120]
[355425152,1741133440499,-587.65,0.00043835,120]
[355425153,1741133440509,-200.0,0.00043835,7]
[355425154,1741133440518,-500.0,0.00043835,120]
[355425155,1741133440528,-608.16,0.00043835,120]
[355425156,1741133440538,-500.0,0.00043835,120]
[355425157,1741133440548,-500.0,0.00043835,120]
[355425158,1741133440557,-500.0,0.00043835,120]
[355425159,1741133440568,-500.0,0.00043835,120]
[355425160,1741133440578,-689.78,0.00043835,120]
[355425161,1741133440587,-500.0,0.00043835,120]
[355425162,1741133440596,-502.79072955,0.00043835,120]
[355425163,1741133440606,-384.38228529,0.00043835,120]
[355425164,1741133440615,-500.0,0.00043835,120]
[355425165,1741133440625,-464.34968517,0.00043835,120]
[355425166,1741133440635,-500.0,0.00043835,120]
[355425167,1741133440644,-500.0,0.00043835,120]
[355425168,1741133440654,-500.0,0.00043835,120]
[355425169,1741133440664,-500.0,0.00043835,120]
[355425170,1741133440674,-500.0,0.00043835,120]
[355425171,1741133440683,-500.0,0.00043835,120]
[355425172,1741133440693,-224.28834459,0.00043835,20]
[355425173,1741133440702,-549.56,0.00043835,120]
[355425174,1741133440712,-500.0,0.00043835,120]
[355425175,1741133440721,-505.10246051,0.00043835,120]
[355425176,1741133440730,-712.67,0.00043835,120]
[355425177,1741133440740,-500.0,0.00043835,120]
[355425178,1741133440749,-500.0,0.00043835,120]
[355425179,1741133440759,-500.0,0.00043835,120]
[355425180,1741133440770,-500.0,0.00043835,120]
[355425181,1741133440779,-500.0,0.00043835,120]
[355425182,1741133440789,-500.0,0.00043835,120]
[355425183,1741133440801,-500.0,0.00043835,120]
[355425184,1741133440810,-500.0,0.00043835,120]
[355425185,1741133440821,-538.62,0.00043835,120]
[355425186,1741133440831,-500.0,0.00043835,120]
[355425187,1741133440840,-543.13,0.00043835,120]
[355425188,1741133440850,-516.22435958,0.00043835,120]
[355425189,1741133440859,-500.0,0.00043835,120]
[355425190,1741133440868,-500.0,0.00043835,120]
[355425191,1741133440879,-500.0,0.00043835,120]
[355425192,1741133440889,-1830.97,0.00043835,120]
[355425193,1741133440898,-500.0,0.00043835,120]
[355425194,1741133440908,-500.0,0.00043835,120]
[355425195,1741133440918,-500.0,0.00043835,120]
[355425196,1741133440927,-654.1,0.00043835,120]
[355425197,1741133440937,-509.92137323,0.00043835,120]
[355425198,1741133440946,-500.0,0.00043835,120]
[355425199,1741133440955,-500.0,0.00043835,120]
[355425200,1741133440965,-500.0,0.00043835,120]
[355425201,1741133440975,-500.0,0.00043835,120]
[355425202,1741133440985,-1041.54,0.00043835,120]
[355425203,1741133440994,-500.0,0.00043835,120]
[355425204,1741133441004,-1000.0,0.00043835,120]
[355425205,1741133441013,-500.0,0.00043835,120]
[355425206,1741133441023,-500.0,0.00043835,120]
[355425207,1741133441032,-500.0,0.00043835,120]
[355425208,1741133441042,-500.0,0.00043835,120]
[355425209,1741133441051,-500.0,0.00043835,120]
[355425210,1741133441061,-500.0,0.00043835,120]
[355425211,1741133441070,-500.0,0.00043835,120]
[355425212,1741133441079,-500.0,0.00043835,120]
[355425213,1741133441089,-500.0,0.00043835,120]
[355425214,1741133441098,-500.0,0.00043835,120]
[355425215,1741133441108,-500.0,0.00043835,120]
[355425216,1741133441117,-500.0,0.00043835,120]
[355425217,1741133441126,-500.0,0.00043835,120]
[355425218,1741133441138,-533.91,0.00043835,120]
[355425219,1741133441148,-500.0,0.00043835,120]
[355425220,1741133441157,-500.0,0.00043835,120]
[355425221,1741133441167,-500.0,0.00043835,120]
[355425222,1741133441176,-755.35,0.00043835,120]
[355425223,1741133441186,-500.0,0.00043835,120]
[355425224,1741133441195,-500.0,0.00043835,120]
[355425225,1741133441204,-225.61565692,0.00043835,120]
[355425226,1741133441213,-500.0,0.00043835,120]
[355425227,1741133441223,-500.0,0.00043835,120]
[355425228,1741133441232,-151.0,0.00043835,120]
[355425229,1741133441242,-500.0,0.00043835,120]
[355425230,1741133441252,-151.0,0.00043835,120]
[355425231,1741133441262,-151.0,0.00043835,120]
[355425232,1741133441274,-12256.92,0.00043835,6]
[355425233,1741133441284,-500.0,0.00043835,120]
[355425234,1741133441294,-151.0,0.00043835,120]
[355425235,1741133441305,-500.0,0.00043835,120]
[355425236,1741133441316,-500.0,0.00043835,120]